[Event "Cattolica Chess Festival 2022"]
[Site "Cattolica"]
[Date "2022.06.04"]
[Round "1.5"]
[White "Harshita Guddanti"]
[Black "Korneev, Oleg"]
[Result "1/2-1/2"]
[ECO "B77"]
[WhiteElo "2208"]
[BlackElo "2521"]
[Annotator "TA"]
[PlyCount "117"]
[EventDate "2022.06.04"]
[EventCountry "ITA"]
[SourceTitle "playchess.com"]
[Source "ChessBase"]
[SourceQuality "1"]
[TimeControl "5400+30"]

{[%evp 23,117,0,0,0,0,0,0,0,0,0,0,0,0,0,0,0,0,0,0,0,0,-32,0,0,0,-5,0,-6,-10,-15,0,0,0,-6,0,0,0,-35,-31,-44,-33,-32,-45,-25,-16,-12,0,0,0,0,0,0,0,0,0,0,0,0,0,0,0,0,0,0,0,0,0,0,0,0,0,0,0,0,0,0,0,0,0,0,0,0,0,0,0,0,0,0,0,0,0,0,0,0,0,0]} 1. e4 {[%emt 0:30:09]} c5 {[%emt 0:30:03]} 2. Nf3 {[%emt 0:00:07]} Nc6 {[%emt 0:00:02]} 3. d4 {[%emt 0:00:06]} cxd4 {[%emt 0:00:02]} 4. Nxd4 {[%emt 0:00:05]} g6 {[%emt 0:00:05]} 5. Nc3 {[%emt 0:00:14]} Bg7 {[%emt 0:00:09]} 6. Be3 {[%emt 0:00:06]} Nf6 {[%emt 0:00:07]} 7. Bc4 {[%emt 0:00:28]} O-O {[%emt 0:01:40]} 8. Bb3 {[%emt 0:00:17]} d6 {[%emt 0:00:14]} 9. f3 {[%emt 0:00:33]} Bd7 {[%emt 0:00:03]} 10. Qd2 {[%emt 0:00:42]} Nxd4 {[%emt 0:00:12]} 11. Bxd4 {[%emt 0:00:50]} b5 {[%emt 0:00:02]} 12. Nd5 {[%emt 0:08:55]} Nxd5 {[%emt 0:01:49]} 13. Bxd5 {[%emt 0:02:25] B77: Sicilian Dragon: Yugoslav Attack, 9 Bc4 sidelines.} Rc8 {[%emt 0:01:11]} 14. Bxg7 {[%emt 0:01:30]} Kxg7 {[%emt 0:00:03]} 15. Qd4+ {[%emt 0:03:38]} f6 {[%emt 0:24:09] [#]} 16. c3 $146 {[%emt 0:04:26]} ({Predecessor:} 16. O-O-O Qb6 17. Qxb6 axb6 18. Rhe1 Rc5 19. Re3 Rfc8 20. Rd2 Be8 21. Ra3 Bf7 22. Ra6 {1-0 (51) Jasny,S (2340)-Mrna,V (2150) Piestany 2004}) 16... Qc7 {[%emt 0:02:06]} 17. O-O {[%emt 0:05:42]} Qc5 {[%emt 0:00:12]} 18. Rfd1 {[%emt 0:01:40]} a5 {[%emt 0:02:59]} 19. Qxc5 {[%emt 0:05:37]} Rxc5 {[%emt 0:01:06]} 20. a3 {[%emt 0:06:27]} h5 {[%emt 0:04:05]} 21. h4 {[%emt 0:03:09]} f5 {[%emt 0:04:04]} 22. b4 {[%emt 0:08:01]} axb4 {[%emt 0:12:41]} 23. axb4 {[%emt 0:00:04]} Rc7 {[%emt 0:00:44]} 24. Ra3 {[%emt 0:02:00]} Kf6 {[%emt 0:01:23]} 25. Kf2 {[%emt 0:05:28]} Rfc8 {[%emt 0:01:59]} 26. Rd3 {[%emt 0:01:16]} fxe4 {[%emt 0:05:27]} 27. Bxe4 {[%emt 0:01:54]} Bf5 {[%emt 0:00:04]} 28. Ke3 {[%emt 0:02:44]} e6 {[%emt 0:02:43]} 29. Bxf5 {[%emt 0:05:24]} gxf5 $11 {[%emt 0:00:07][%mdl 4096] Endgame KRR-KRR} 30. Ra5 {[%emt 0:00:29]} ({Of course not} 30. Rxd6 Rxc3+ 31. Rd3 Rxa3 32. Rxa3 Rc4 $17) 30... Rxc3 {[%emt 0:00:24]} 31. Rxb5 {[%emt 0:00:18]} f4+ {[%emt 0:00:00]} 32. Ke2 {[%emt 0:00:00]} Rc2+ {[%emt 0:00:00]} 33. Rd2 $1 {[%emt 0:00:00]} Rxd2+ {[%emt 0:00:00]} 34. Kxd2 {[%emt 0:00:00] KR-KR. The position is equal.} Rc4 {[%emt 0:00:00]} 35. Kd3 {[%emt 0:00:00]} d5 {[%emt 0:00:00]} 36. Rb8 {[%emt 0:00:00]} Ke5 {[%emt 0:00:00]} 37. b5 {[%emt 0:00:00][%cal Bb4b5,Bb5b6][%mdl 32]} Rb4 {[%emt 0:00:00]} 38. b6 {[%emt 0:00:00]} Kd6 {[%emt 0:01:28]} 39. b7 {[%emt 0:00:00]} Rb3+ {[%emt 0:00:09]} 40. Kc2 {[%emt 0:00:00]} Rb6 {[%emt 0:00:05]} 41. Kd3 {[%emt 0:00:00]} Kc7 {[%emt 0:00:44]} 42. Rf8 {[%emt 0:00:00]} Rxb7 {[%emt 0:03:28]} 43. Rxf4 {[%emt 0:00:00]} Kd6 {[%emt 0:00:21]} 44. g4 {[%emt 0:00:00]} Ke5 {[%emt 0:00:22]} 45. Ra4 {[%emt 0:00:00]} Rb3+ {[%emt 0:00:43]} 46. Ke2 $1 {[%emt 0:00:00]} hxg4 {[%emt 0:01:36]} 47. Rxg4 {[%emt 0:02:53]} Rb1 {[%emt 0:00:18]} 48. Ke3 {[%emt 0:02:24]} Rh1 {[%emt 0:00:46]} 49. Rg5+ {[%emt 0:00:18]} Kf6 {[%emt 0:00:18]} 50. Rh5 {[%emt 0:00:10]} e5 {[%emt 0:01:49]} 51. Rh6+ {[%emt 0:00:28]} Kf7 {[%emt 0:00:22]} 52. h5 {[%emt 0:01:22]} d4+ {[%emt 0:00:02]} 53. Ke4 {[%emt 0:01:18]} Re1+ {[%emt 0:00:39]} 54. Kf5 {[%emt 0:00:44]} Ke7 {[%emt 0:00:09] [#] White must now prevent ...d3.} 55. Rh7+ {[%emt 0:01:28]} Kd6 {[%emt 0:00:16] aiming for ...d3.} 56. Rh8 {[%emt 0:00:08]} Kd7 {[%emt 0:02:44] Threatens to win with ...d3.} 57. Rh7+ {[%emt 0:00:31]} Kc6 {[%emt 0:00:10] Hoping for ...d3.} 58. Rh8 {[%emt 0:00:21] [#] Strongly threatening h6.} ({Wrong is} 58. h6 $2 d3 59. Rh8 d2 $19) 58... Kd7 {[%emt 0:02:25] ...d3 is the strong threat.} 59. Rh7+ {[%emt 0:03:11] Weighted Error Value: White=0.02 (flawless) /Black=0.02 (flawless)} 1/2-1/2

[Event "Cattolica Chess Festival 2022"]
[Site "Cattolica"]
[Date "2022.06.04"]
[Round "1.6"]
[White "Rahul Srivatshav P"]
[Black "Ojas Kulkarni"]
[Result "1/2-1/2"]
[ECO "D85"]
[WhiteElo "2458"]
[BlackElo "2235"]
[Annotator "TA"]
[PlyCount "46"]
[EventDate "2022.06.04"]
[EventCountry "ITA"]
[SourceTitle "playchess.com"]
[Source "ChessBase"]
[SourceQuality "1"]
[TimeControl "5400+30"]

{[%evp 15,46,3,40,40,47,27,48,35,28,0,0,0,0,0,0,0,6,5,10,5,5,5,10,0,10,10,10,0,0,0,0,0,0]} 1. d4 {[%emt 0:30:03] Yermolinsky,Alex} Nf6 {[%emt 0:30:05]} 2. c4 {[%emt 0:00:03]} g6 {[%emt 0:00:06]} 3. Nc3 {[%emt 0:00:02]} d5 {[%emt 0:00:04]} 4. cxd5 {[%emt 0:00:04]} Nxd5 {[%emt 0:00:04]} 5. e4 {[%emt 0:00:03]} Nxc3 {[%emt 0:00:05]} 6. bxc3 {[%emt 0:00:02]} Bg7 {[%emt 0:00:05]} 7. Nf3 $1 {[%emt 0:00:03][%mdl 4] is more profitable than 7.Bc4 at the moment.} c5 {[%emt 0:00:05]} 8. Be3 {[%emt 0:00:06]} Bg4 {[%emt 0:00:05]} 9. Rc1 {[%emt 0:00:08] D85: Exchange Grünfeld: Unusual White 7th moves and lines with 7 Nf3.} Bxf3 {[%emt 0:00:13]} 10. gxf3 {[%emt 0:10:19]} Qa5 {[%emt 1:04:38] Inhibits Qa4+.} 11. Qb3 {[%emt 0:06:24] White is slightly better.} O-O {[%emt 0:00:00] [#] ...cxd4 is the strong threat.} 12. dxc5 $146 {[%emt 0:08:13]} ({Predecessor:} 12. Qb5 Qxb5 13. Bxb5 a6 14. Be2 Nd7 15. f4 e6 16. e5 Rac8 17. O-O Rc7 18. Rfd1 Nb6 19. Bf3 Nc4 20. dxc5 g5 21. c6 Nxe3 22. fxe3 bxc6 {½-½ (22) Yermolinsky,A (2510)-Wei,Y (2604) Las Vegas 2013 EXT 2015 [Yermolinsky,Alex ]}) 12... Na6 {[%emt 0:00:00] The position is equal.} 13. Be2 {[%emt 0:18:14]} ({But not} 13. Qxb7 $2 Bxc3+ 14. Rxc3 (14. Ke2 $2 Qxa2+ 15. Kd3 Be5 $19) 14... Qxc3+ 15. Bd2 Qxf3 16. Qxa6 Qxe4+ 17. Qe2 Qxh1 $19) 13... Rac8 {[%emt 0:00:00]} 14. Qxb7 {[%emt 0:03:59]} Nxc5 {[%emt 0:00:00]} 15. Qb5 {[%emt 0:00:09]} Bxc3+ {[%emt 0:00:00]} 16. Kf1 {[%emt 0:00:02][%cal Be1f1,Bf1g2,Bg2g3][%mdl 32] [#] Hoping for Qxa5.} Ne6 {[%emt 0:00:00]} 17. Qxa5 {[%emt 0:02:03]} Bxa5 {[%emt 0:00:00]} 18. Kg2 {[%emt 0:00:07]} Bb6 {[%emt 0:00:00]} 19. Bc4 {[%emt 0:00:06]} Rfd8 {[%emt 0:00:00]} 20. Bxe6 {[%emt 0:03:55]} fxe6 {[%emt 0:00:00]} 21. Kg3 {[%emt 0:00:14]} Bxe3 {[%emt 0:00:00]} 22. fxe3 {[%emt 0:00:04]} Kf7 {[%emt 0:00:00]} 23. a4 {[%emt 0:00:47]} Kf6 {[%emt 0:00:00] Weighted Error Value: White=0.04 (flawless) /Black=0.07 (flawless)} 1/2-1/2

[Event "Cattolica Chess Festival 2022"]
[Site "Cattolica"]
[Date "2022.06.04"]
[Round "1.7"]
[White "Tytynnik, Artem"]
[Black "Milikow, Yoav"]
[Result "0-1"]
[ECO "E11"]
[WhiteElo "2205"]
[BlackElo "2410"]
[Annotator "TA"]
[PlyCount "92"]
[EventDate "2022.06.04"]
[EventCountry "ITA"]
[SourceTitle "playchess.com"]
[Source "ChessBase"]
[SourceQuality "1"]
[TimeControl "5400+30"]

{[%evp 12,92,0,7,38,39,29,28,22,25,32,31,25,24,35,25,43,36,36,36,37,27,75,69,88,10,11,10,11,10,11,-7,0,-19,92,0,0,0,0,-145,-143,-137,-121,-120,-120,-170,-174,-173,-162,-164,-170,-165,-70,-87,-59,-80,-65,-152,-150,-150,-156,-240,-240,-240,-240,-240,-238,-218,-219,-245,-217,-233,-174,-325,-327,-1920,-722,-691,-684,-651,-637,-29991,-29992]} 1. d4 {[%emt 0:30:04]} Nf6 {[%emt 0:30:08]} 2. c4 {[%emt 0:00:06]} e6 {[%emt 0:00:09]} 3. g3 {[%emt 0:00:04]} Bb4+ {[%emt 0:00:11]} 4. Bd2 {[%emt 0:00:05]} a5 {[%emt 0:00:05]} 5. Bg2 {[%emt 0:00:05]} d5 {[%emt 0:00:12]} 6. Qc2 {[%emt 0:03:03]} O-O {[%emt 0:02:36]} 7. Nf3 {[%emt 0:00:12][%cal Bg1f3,Bf3e5,Be5d3][%mdl 32]} c5 {[%emt 0:00:42] E11: Bogo-Indian.} 8. dxc5 {[%emt 0:00:36]} (8. cxd5 {is more complex.} cxd4 9. Nxd4 Qb6 10. e3) 8... d4 {[%emt 0:00:39]} 9. Bxb4 {[%emt 0:08:02]} axb4 {[%emt 0:00:03] White has an edge.} 10. Ne5 {[%emt 0:02:16] Prevents Nc6.} Qc7 {[%emt 0:01:44]} 11. Nd3 {[%emt 0:01:55]} Na6 {[%emt 0:02:13]} 12. O-O {[%emt 0:02:51]} e5 {[%emt 0:01:38]} 13. Nd2 {[%emt 0:01:39]} Bf5 {[%emt 0:02:59]} 14. Nb3 {[%emt 0:03:37]} Nd7 {[%emt 0:05:57] [#]} 15. Qd2 $146 {[%emt 0:04:27]} ({Predecessor:} 15. c6 bxc6 16. c5 Nf6 17. Qd2 Be4 18. Bxe4 Nxe4 19. Qc2 Qe7 20. Qc4 Nf6 21. Nxb4 Nxb4 22. Qxb4 {0-1 (51) Romanishin,O (2415)-Erigaisi,A (2675) Ciutadella de Menorca 2022}) 15... Bxd3 {[%emt 0:04:34]} 16. exd3 {[%emt 0:05:48]} Rab8 {[%emt 0:02:22]} (16... Naxc5 $11 {might be stronger.} 17. Bd5 Ra7) 17. f4 {[%emt 0:02:01]} Naxc5 {[%emt 0:02:13]} 18. fxe5 {[%emt 0:05:11]} (18. Nxc5 $16 Qxc5 19. a3) 18... Nxe5 $11 {[%emt 0:01:06]} 19. Nxc5 {[%emt 0:02:33]} (19. Bd5 {is interesting.} Ncxd3 20. Rad1 b5 21. cxb5 Rxb5 22. Bg2) 19... Qxc5 {[%emt 0:00:02]} 20. a3 {[%emt 0:03:02]} b3 {[%emt 0:01:46]} 21. Rf4 {[%emt 0:02:16]} b5 {[%emt 0:00:48]} 22. cxb5 {[%emt 0:03:19]} Qxb5 {[%emt 0:04:00]} (22... Rxb5 $11 23. Rc1 Qb6) 23. Rxd4 {[%emt 0:05:14]} (23. a4 $1 $16 {[%cal Ra4b5]} Qa6 24. Rxd4) 23... Qb6 {[%emt 0:01:04]} 24. Qf2 {[%emt 0:00:12]} Rfc8 {[%emt 0:00:33] And now ...Rc2 would win.} 25. Rd5 {[%emt 0:02:57]} (25. Rf4 $11 {keeps the balance.}) 25... Qxf2+ $17 {[%emt 0:00:28]} 26. Kxf2 {[%emt 0:00:01]} Rc2+ {[%emt 0:02:04]} 27. Kg1 {[%emt 0:00:45]} Ng4 {[%emt 0:03:33] Black is much more active.} 28. Re1 {[%emt 0:04:00] Prevents Ne3.} (28. Bf3 $17 Nxh2 29. Be4) 28... Nf6 $1 $19 {[%emt 0:01:40]} ({Not} 28... Rxb2 29. Rb5 Rd8 30. Rd5 $11) 29. Rf5 {[%emt 0:05:16]} Rxb2 {[%emt 0:00:08]} 30. Rf2 {[%emt 0:01:41]} Ra2 {[%emt 0:00:24]} 31. Rb1 {[%emt 0:00:20] [#] Rxa2 is the strong threat.} Rxa3 {[%emt 0:02:37]} (31... b2 $1 $19 {aiming for ...Ra1.} 32. d4 Ra1) 32. Rfb2 {[%emt 0:00:14]} g5 {[%emt 0:04:06]} 33. d4 {[%emt 0:01:18]} Rb6 {[%emt 0:04:58]} 34. Kf1 {[%emt 0:01:41] [#]} ({White should try} 34. Bf3 $15) 34... Ng4 $1 $17 {[%emt 0:01:27] Threatens to win with ...Ne3+.} 35. Ke2 {[%emt 0:00:00] Prevents Ne3.} Re6+ {[%emt 0:00:00]} (35... Nxh2 36. Kd3 $17) 36. Kd3 {[%emt 0:00:00]} (36. Kd2 $17) 36... Re3+ $19 {[%emt 0:00:00]} ({Weaker is} 36... Nxh2 37. Bd5 Rd6 38. Rxb3 $15) 37. Kc4 {[%emt 0:00:00]} Ra4+ {[%emt 0:00:00]} (37... Nxh2 38. Bc6 Ng4 39. Kb4 $17 (39. Rxb3 $2 Rxg3 40. Rxg3 Rxg3 $19)) 38. Kc5 {[%emt 0:01:10]} Rc3+ {[%emt 0:00:00]} ({And not} 38... Nxh2 39. Rxb3 Ra5+ 40. Kb4 Rxb3+ 41. Rxb3 $15) 39. Kb5 {[%emt 0:00:48]} Rxd4 {[%emt 0:00:00]} 40. Bh3 {[%emt 0:00:35]} Ne5 {[%emt 0:00:00]} 41. Rxb3 {[%emt 0:00:12]} Rd5+ {[%emt 0:00:00]} 42. Kb4 $2 {[%emt 0:00:16]} (42. Kb6 Rc2 43. R1b2) 42... Rc2 {[%emt 0:00:00] ( -> ...Nc6+)} 43. Re3 $2 {[%emt 0:01:35]} (43. Rc3 Rxh2 44. Bf5) 43... Rc4+ {[%emt 0:00:00]} (43... Nc6+ $142 44. Kb3 Nd4+ 45. Ka4 Rc4+ 46. Rb4 Rxb4+ 47. Kxb4 Nc2+ 48. Kb3 Nxe3) 44. Ka3 {[%emt 0:00:31]} Ra5+ {[%emt 0:00:00]} 45. Kb2 {[%emt 0:00:09]} Rb5+ {[%emt 0:00:00]} 46. Rb3 {[%emt 0:00:23]} Nd3+ $1 {[%emt 0:00:00] Weighted Error Value: White=0.56/Black=0.24 (precise)} 0-1

[Event "Cattolica Chess Festival 2022"]
[Site "Cattolica"]
[Date "2022.06.04"]
[Round "1.8"]
[White "Kjartansson, Gudmundur"]
[Black "Andreev, Konstantin"]
[Result "1-0"]
[ECO "B30"]
[WhiteElo "2452"]
[BlackElo "2238"]
[Annotator "TA"]
[PlyCount "89"]
[EventDate "2022.06.04"]
[EventCountry "ITA"]
[SourceTitle "playchess.com"]
[Source "ChessBase"]
[SourceQuality "1"]
[TimeControl "5400+30"]

{[%evp 11,89,16,31,31,54,40,43,35,45,32,35,0,43,0,0,0,0,0,-10,-51,-56,-168,-68,-72,28,27,27,10,80,78,164,164,164,165,207,147,241,238,233,85,93,83,76,85,148,134,316,303,603,611,600,468,594,488,470,248,252,260,252,253,245,252,235,251,210,234,554,411,1552,1555,5239,5147,1585,767,1199,1197,864,852,5037,4929]} 1. e4 {[%emt 0:30:12]} c5 {[%emt 0:30:09]} 2. Nf3 {[%emt 0:00:06]} Nc6 {[%emt 0:00:03]} 3. Bb5 {[%emt 0:00:27]} e6 {[%emt 0:00:06]} 4. O-O {[%emt 0:00:25]} Nge7 {[%emt 0:00:05]} 5. d4 {[%emt 0:00:11]} cxd4 {[%emt 0:00:06]} 6. Nxd4 {[%emt 0:00:05]} Qb6 {[%emt 0:00:05] 6...Ng6 injects fresh life into this line.} 7. Nxc6 {[%emt 0:00:52] B30: Sicilian: 2...Nc6 3 Bb5, lines without ...g6.} Nxc6 {[%emt 0:00:10]} 8. a4 {[%emt 0:01:30]} Be7 {[%emt 0:00:32] [#]} 9. Na3 $146 {[%emt 0:01:41] White is slightly better.} ({Predecessor:} 9. Be3 Qc7 10. Nc3 O-O 11. f4 d6 12. Bd3 a6 13. Qf3 Bd7 14. Qg3 Kh8 15. Rae1 Rae8 16. Kh1 Nb4 17. Bd4 {½-½ (17) Rozentalis,E (2618)-Zambrana,O (2504) Asuncion 2010}) 9... Qc7 {[%emt 0:02:07]} 10. Be3 {[%emt 0:09:20]} O-O {[%emt 0:00:25]} 11. Qh5 {[%emt 0:04:41]} b6 {[%emt 0:08:11]} 12. f4 {[%emt 0:09:04]} (12. Be2 $5 {[%cal Ra3b5]}) 12... Bb7 {[%emt 0:00:54]} 13. Rf3 {[%emt 0:05:02] Rh3 is the strong threat.} g6 {[%emt 0:00:08]} 14. Qh6 {[%emt 0:00:27]} f6 {[%emt 0:00:13]} 15. Rh3 {[%emt 0:04:10][%csl Gh3][%cal Rh6h7]} Rf7 {[%emt 0:00:07]} 16. Bc4 {[%emt 0:07:26] [#]} ({Better is} 16. Rg3 $15) 16... Bf8 {[%emt 0:06:46]} ({Black should try} 16... Ne5 $1 $19 {[%cal Re5c4][%mdl 512]} 17. fxe5 (17. Be2 Bxa3) 17... Bxa3) 17. Qh4 $1 $15 {[%emt 0:00:26]} Re8 {[%emt 0:00:50]} (17... Ne7 $17 18. Bd3 Qc6) 18. Nb5 $11 {[%emt 0:01:38]} Qb8 {[%emt 0:00:21]} 19. Rd1 {[%emt 0:07:07][%cal Oe4e5]} a6 {[%emt 0:04:14]} (19... Nb4 $11) 20. Nc3 $16 {[%emt 0:15:40][%cal Oc3d5] 0x0.001aa0dbac50dp-1022s more active pieces.} Nb4 {[%emt 0:07:16] Against Nd5} (20... Na5 $16 21. Be2 Qc7) 21. f5 $18 {[%emt 0:00:00] Hoping for fxg6.} (21. Bxb6 Bxe4 22. Nxe4 Qxb6+ 23. Kf1 Be7 $11) 21... g5 {[%emt 0:05:10]} 22. Qf2 {[%emt 0:00:00]} Qc8 {[%emt 0:07:47]} 23. Bb3 {[%emt 0:00:00]} b5 {[%emt 0:01:02]} (23... Bc5 $16 24. Rh6 Kg7) 24. axb5 {[%emt 0:00:00]} axb5 {[%emt 0:00:06]} 25. e5 {[%emt 0:00:00]} (25. Nxb5 Bxe4 26. Nd4 (26. fxe6 dxe6 27. Nc3 Bf5 $11) 26... Nd5 $11) (25. Rf3 $18 {and White stays clearly on top. Threatens to win with fxe6.} Nc6 26. fxe6 (26. Nxb5 Ne5 $14) 26... dxe6 27. Rxf6 (27. Nxb5 Ne5 $16)) 25... fxe5 $16 {[%emt 0:02:14] [#]} 26. fxe6 $1 {[%emt 0:00:00]} dxe6 {[%emt 0:00:32]} (26... Rxf2 $2 27. exd7+ Rf7 28. dxc8=N Bxc8 29. Bxf7+ (29. Bxg5 Bxh3 30. gxh3 Kg7 $16) 29... Kxf7 30. Rxh7+ Kg6 31. Rc7 $18) 27. Qe2 {[%emt 0:00:00]} Qc6 {[%emt 0:03:18] [#]} (27... Rg7 $142) 28. Rg3 $1 {[%emt 0:00:00]} h6 {[%emt 0:02:58] Black cannot hold the game after this.} (28... Kh8 $16) 29. h4 $18 {[%emt 0:00:00]} Be7 $2 {[%emt 0:01:26]} (29... g4 30. Rxg4+ Kh7) 30. hxg5 {[%emt 0:01:47]} hxg5 {[%emt 0:00:09]} 31. Qg4 {[%emt 0:00:00]} Bc8 {[%emt 0:00:00]} 32. Bxg5 {[%emt 0:00:00]} Rg7 {[%emt 0:00:00]} 33. Bxe7 {[%emt 0:00:00]} (33. Qh4 $142 {And now Bxe7 would win.} Qc5+ 34. Kh2 Bxg5 35. Rxg5) 33... Qb6+ {[%emt 0:00:00]} 34. Kh2 {[%emt 0:00:00][%csl Gg3][%cal Rg4g7]} Rxg4 {[%emt 0:00:00]} 35. Rxg4+ $40 {[%emt 0:00:00][%mdl 128] White attacks with force.} Kf7 {[%emt 0:00:00]} 36. Bh4 {[%emt 0:01:27] White wants to mate with Rf1+. Really sharp! A strong pair of Bishops.} (36. Rxb4 Rxe7 37. Rd3 Bb7 $17) ({But not} 36. Bxb4 $2 Rh8+ 37. Rh4 Rxh4+ $19) 36... Rh8 {[%emt 0:00:00][%cal Ob6f2] Strongly threatening ...Qf2!} 37. Rf1+ {[%emt 0:00:43][%cal Bd1f1,Bf1f6,Bf6e6,Be6e7,Be7e8][%mdl 32]} ({Weaker is} 37. Rxb4 Qf2 38. Kh3 Qe3+ 39. Kh2 Qf2 $11) 37... Ke8 {[%emt 0:00:00][%cal Ob4d5]} 38. Rxb4 {[%emt 0:00:11]} Bb7 $2 {[%emt 0:00:00]} (38... Qd8 {is tougher.}) 39. Rf6 {[%emt 0:01:31]} Qe3 {[%emt 0:00:00]} (39... Qd8 $142 40. Rxe6+ Kd7) 40. Rxe6+ {[%emt 0:01:18] White is clearly winning.} Kd7 {[%emt 0:00:00]} 41. Re7+ {[%emt 0:00:37]} Kc8 {[%emt 0:00:00]} 42. Bd5 {[%emt 0:00:43]} Qc5 {[%emt 0:00:00]} 43. Bxb7+ {[%emt 0:00:25]} Kb8 {[%emt 0:00:00]} 44. Nd5 {[%emt 0:00:56]} Qf2 {[%emt 0:00:00] [#]} 45. Re8+ $3 {[%emt 0:00:19] Weighted Error Value: White=0.29 (precise) /Black=0.57} 1-0